bitfinex/quotes_BTCUSD_20241123
["timestamp","ask_amount","ask_price","bid_price","bid_amount"]
[1732345865136,0.0783,98211.0,98190.0,0.05066103]
[1732345868081,0.0497,98210.0,98190.0,0.05066103]
[1732345868923,0.03976475,98210.0,98190.0,0.05066103]
[1732345870875,0.0017206,98212.0,98190.0,0.05066103]
[1732345871084,0.0017206,98212.0,98189.0,0.0501479]
[1732345874022,0.128,98211.0,98189.0,0.0501479]
[1732345875412,0.128,98211.0,98200.0,0.50589735]
[1732345876748,0.08713155,98211.0,98200.0,0.50589735]
[1732345876968,0.08713155,98211.0,98201.0,0.05001927]
[1732345882775,0.08713155,98211.0,98201.0,0.05087947]
[1732345883189,0.08885195,98211.0,98201.0,0.05087947]
[1732345885400,0.08885195,98211.0,98201.0,0.09143539]
[1732345886041,0.0800204,98211.0,98201.0,0.09143539]
[1732345886250,0.0800204,98211.0,98202.0,0.0487]
[1732345886889,0.07105041,98211.0,98203.0,0.05085804]
[1732345887762,0.06620764,98211.0,98202.0,0.05075509]
[1732345888006,0.0453,98210.0,98202.0,0.05075509]
[1732345888251,0.04657275,98210.0,98202.0,0.05075509]
[1732345889742,0.04657275,98210.0,98203.0,0.00445934]
[1732345890175,0.04657275,98210.0,98204.0,0.05065541]
[1732345890462,0.04437275,98210.0,98204.0,0.05065541]
[1732345890669,0.04437275,98210.0,98205.0,0.00452702]
[1732345890883,0.0772,98209.0,98206.0,0.05043312]
[1732345891092,0.0792,98207.0,98206.0,0.05043312]
[1732345891300,0.002,98204.0,98202.0,0.05075509]
[1732345891517,0.0772,98203.0,98202.0,0.05075509]
[1732345891972,0.0792,98203.0,98202.0,0.05075509]
[1732345892193,0.0772,98203.0,98202.0,0.05075509]
[1732345893348,0.0772,98203.0,98202.0,0.05528096]
[1732345893581,0.1225,98203.0,98202.0,0.05528096]
[1732345896588,0.1245,98203.0,98202.0,0.05528096]
[1732345899939,0.11930798,98203.0,98202.0,0.05528096]
[1732345900156,0.11024166,98203.0,98202.0,0.05528096]
[1732345901696,0.11024166,98203.0,98162.0,0.00970118]
[1732345901933,0.11024166,98203.0,98164.0,0.0502884]
[1732345902374,0.001,98195.0,98164.0,0.0502884]
[1732345902586,0.001,98195.0,98154.0,0.05069125]
[1732345903262,0.001,98195.0,98149.0,0.0506325]
[1732345903935,0.001,98195.0,98151.0,0.05059076]
[1732345904152,0.001,98195.0,98152.0,0.00101837]
[1732345904370,0.001,98195.0,98154.0,0.023]
[1732345904598,0.001,98195.0,98155.0,0.05138683]
[1732345904819,0.001,98195.0,98156.0,0.1296]
[1732345905046,0.001,98195.0,98158.0,0.05058876]
[1732345905261,0.001,98195.0,98162.0,0.1296]
[1732345905495,0.001,98195.0,98165.0,0.0484]
[1732345905730,0.001,98195.0,98167.0,0.1296]
[1732345905938,0.001,98195.0,98169.0,0.0484]
[1732345906145,0.001,98195.0,98168.0,0.08221837]
[1732345906146,0.001,98195.0,98172.0,0.0484]
[1732345906364,0.001,98195.0,98173.0,0.00101837]
[1732345907418,0.001,98195.0,98174.0,0.05042645]
[1732345907624,0.001,98195.0,98175.0,0.00101837]
[1732345908266,0.001,98195.0,98176.0,0.0507925]
[1732345908516,0.001,98195.0,98178.0,0.05067498]
[1732345908734,0.001,98195.0,98179.0,0.00101837]
[1732345908948,0.0649436,98197.0,98179.0,0.00101837]
[1732345909159,0.0649436,98197.0,98180.0,0.05004489]
[1732345909392,0.0649436,98197.0,98184.0,0.05065678]
[1732345909393,0.03593361,98197.0,98184.0,0.05065678]
[1732345909627,0.03593361,98197.0,98183.0,0.0484]
[1732345909628,0.04171782,98203.0,98186.0,0.05068141]
[1732345910526,0.04171782,98203.0,98185.0,0.05094408]
[1732345910695,0.04171782,98203.0,98185.0,0.05196245]
[1732345912156,0.00127275,98202.0,98185.0,0.05196245]
[1732345912368,0.0773,98202.0,98185.0,0.05196245]
[1732345912634,0.0773,98202.0,98186.0,0.00101837]
[1732345913054,0.0773,98202.0,98187.0,0.05046001]
[1732345913263,0.0773,98202.0,98185.0,0.05094408]
[1732345913490,0.0773,98202.0,98186.0,0.00101837]
[1732345913915,0.0773,98202.0,98187.0,0.05046001]
[1732345914138,0.0773,98202.0,98185.0,0.05094408]
[1732345914367,0.0773,98202.0,98187.0,0.05046001]
[1732345915029,0.07857275,98202.0,98187.0,0.05046001]
[1732345915474,0.07390765,98202.0,98185.0,0.05094408]
[1732345915688,0.00127275,98201.0,98187.0,0.05046001]
[1732345916427,0.00127275,98201.0,98185.0,0.05094408]
[1732345916591,0.00127275,98201.0,98187.0,0.05046001]
[1732345916850,0.00127275,98201.0,98185.0,0.05094408]
[1732345917048,0.00127275,98201.0,98186.0,0.00101837]
[1732345917270,0.00127275,98201.0,98187.0,0.05046001]
[1732345917456,0.00127275,98201.0,98185.0,0.05094408]
[1732345917584,0.00127275,98201.0,98187.0,0.05046001]
[1732345917813,0.00127275,98201.0,98185.0,0.05094408]
[1732345918016,0.00127275,98201.0,98187.0,0.05046001]
[1732345918225,0.00127275,98201.0,98185.0,0.05094408]
[1732345918476,0.00127275,98201.0,98187.0,0.05046001]
[1732345918952,0.049,98200.0,98185.0,0.05094408]
[1732345919157,0.049,98200.0,98186.0,0.00101837]
[1732345919530,0.049,98200.0,98187.0,0.05046001]
[1732345923809,0.049,98200.0,98179.0,0.05069001]
[1732345924197,0.00127275,98199.0,98179.0,0.05069001]
[1732345924883,0.00127275,98199.0,98175.0,0.0507823]
[1732345925089,0.0017206,98201.0,98175.0,0.0507823]
[1732345925742,0.00127275,98200.0,98175.0,0.0507823]
[1732345927986,0.129,98199.0,98175.0,0.0507823]
[1732345928188,0.00127275,98198.0,98175.0,0.0507823]
[1732345930428,0.00127275,98198.0,98175.0,0.09227267]
[1732345934401,0.00127275,98198.0,98177.0,0.05068443]
[1732345934618,0.00127275,98198.0,98178.0,0.0478]
[1732345935094,0.04377275,98198.0,98178.0,0.0478]
[1732345935549,0.04377275,98198.0,98179.0,0.05066595]
[1732345936877,0.03744167,98198.0,98179.0,0.05066595]
[1732345937321,0.1,98200.0,98182.0,0.05098004]
[1732345937776,0.06496,98200.0,98184.0,0.05014124]
[1732345938230,0.04541581,98200.0,98184.0,0.05014124]
[1732345938443,0.04136438,98200.0,98184.0,0.05014124]
[1732345939387,0.02487217,98200.0,98184.0,0.05014124]
[1732345940478,0.02487217,98200.0,98184.0,0.09226891]
[1732345940703,0.00771626,98200.0,98184.0,0.09226891]
[1732345942479,0.05977484,98204.0,98149.0,0.05087684]
[1732345942747,0.05977484,98204.0,98154.0,0.0827]
[1732345942973,0.05977484,98204.0,98156.0,0.0827]
[1732345943196,0.05977484,98204.0,98158.0,0.0827]
[1732345943421,0.05977484,98204.0,98161.0,0.0506826]
[1732345943647,0.05977484,98204.0,98162.0,0.0827]
[1732345944074,0.05977484,98204.0,98164.0,0.0827]
[1732345944309,0.05977484,98204.0,98166.0,0.0827]
[1732345944511,0.05977484,98204.0,98151.0,0.05095938]
[1732345944934,0.05977484,98204.0,98152.0,0.0827]
[1732345945068,0.05977484,98204.0,98154.0,0.0827]
[1732345945495,0.05977484,98204.0,98157.0,0.1318]
[1732345945700,0.06149524,98204.0,98160.0,0.0827]
[1732345946050,0.06149524,98204.0,98162.0,0.0827]
[1732345946211,0.06149524,98204.0,98163.0,0.0491]
[1732345946417,0.06149524,98204.0,98166.0,0.1318]
[1732345946620,0.06149524,98204.0,98170.0,0.1318]
[1732345946845,0.06149524,98204.0,98172.0,0.0491]
[1732345947654,0.06149524,98204.0,98173.0,0.05045335]
[1732345947870,0.06149524,98204.0,98174.0,0.0491]
[1732345948851,0.02567525,98204.0,98177.0,0.05053824]
[1732345949056,0.02567525,98204.0,98178.0,0.0827]
[1732345949522,0.02567525,98204.0,98149.0,0.05087684]
[1732345949718,0.0466,98203.0,98149.0,0.05087684]
[1732345949920,0.0466,98203.0,98145.0,0.023]
[1732345950574,0.079,98202.0,98146.0,0.05007729]
[1732345950790,0.0466,98201.0,98146.0,0.05007729]
[1732345951995,0.04222362,98201.0,98146.0,0.05007729]
[1732345952186,0.079,98200.0,98149.0,0.0491]
[1732345952385,0.079,98200.0,98151.0,0.0491]
[1732345952673,0.079,98200.0,98153.0,0.0491]
[1732345952886,0.079,98200.0,98155.0,0.1318]
[1732345953119,0.079,98200.0,98159.0,0.0491]
[1732345953292,0.079,98200.0,98161.0,0.0491]
[1732345953888,0.079,98200.0,98162.0,0.0491]
[1732345954962,0.079,98200.0,98163.0,0.05037076]
[1732345955190,0.079,98203.0,98163.0,0.05037076]
[1732345955444,0.079,98201.0,98164.0,0.0491]
[1732345955667,0.079,98201.0,98166.0,0.0491]
[1732345957013,0.079,98201.0,98169.0,0.046]
[1732345957438,0.07448043,98201.0,98170.0,0.09613384]
[1732345957908,0.07448043,98201.0,98171.0,0.046]
[1732345958125,0.06733577,98201.0,98171.0,0.046]
[1732345958349,0.0398,98200.0,98173.0,0.046]
[1732345958562,0.0398,98200.0,98170.0,0.046]
[1732345958773,0.03052342,98200.0,98170.0,0.046]
[1732345958987,0.02314796,98200.0,98170.0,0.046]
[1732345961375,0.0811,98199.0,98172.0,0.046]
[1732345961582,0.0811,98199.0,98175.0,0.05047125]
[1732345961851,0.0811,98199.0,98176.0,0.0462]
[1732345962083,0.0811,98199.0,98165.0,0.0506697]
[1732345965142,0.0811,98199.0,98167.0,0.0462]
[1732345965602,0.0497,98198.0,98168.0,0.05050876]
[1732345965824,0.0497,98198.0,98169.0,0.0462]
[1732345966038,0.0497,98198.0,98142.0,0.0793]
[1732345966256,0.0497,98198.0,98145.0,0.05046793]
[1732345966482,0.0497,98198.0,98146.0,0.0793]
[1732345966704,0.0497,98198.0,98107.0,0.53672377]
[1732345966705,0.0497,98198.0,98147.0,0.05095103]
[1732345966959,0.0497,98198.0,98148.0,0.0793]
[1732345967198,0.0497,98198.0,98106.0,0.53672377]
[1732345967199,0.0497,98198.0,98149.0,0.05000235]
[1732345967406,0.0497,98198.0,98150.0,0.0793]
[1732345967630,0.0497,98198.0,98152.0,0.0793]
[1732345967822,0.04314959,98198.0,98153.0,0.05020712]
[1732345968034,0.04314959,98198.0,98160.0,0.0793]
[1732345968245,0.04314959,98198.0,98162.0,0.0793]
[1732345968460,0.04314959,98198.0,98163.0,0.0462]
[1732345968673,0.04314959,98198.0,98164.0,0.05040072]
[1732345968895,0.023,98202.0,98164.0,0.05040072]
[1732345969100,0.0829,98201.0,98164.0,0.05040072]
[1732345969555,0.07673318,98201.0,98165.0,0.0462]
[1732345969800,0.07673318,98201.0,98166.0,0.05008345]
[1732345971923,0.0497,98200.0,98166.0,0.05008345]
[1732345972591,0.0497,98198.0,98166.0,0.05008345]
[1732345972810,0.0247204,98203.0,98166.0,0.05008345]
[1732345973027,0.0247204,98203.0,98167.0,0.1255]
[1732345973523,0.0247204,98203.0,98168.0,0.0462]
[1732345973743,0.0247204,98203.0,98168.0,0.07092]
[1732345974410,0.0247204,98203.0,98169.0,0.0462]
[1732345974653,0.0247204,98203.0,98164.0,0.04085044]
[1732345974654,0.0829,98198.0,98142.0,0.09636284]
[1732345974888,0.0829,98198.0,98162.0,0.0462]
[1732345975768,0.0829,98198.0,98164.0,0.0462]
[1732345976886,0.0829,98198.0,98166.0,0.0476]
[1732345977616,0.0829,98198.0,98168.0,0.0476]
[1732345977830,0.0829,98198.0,98167.0,0.0795]
[1732345977831,0.0829,98198.0,98170.0,0.0476]
[1732345978711,0.0829,98198.0,98172.0,0.0476]
[1732345978930,0.0829,98198.0,98173.0,0.05049489]
[1732345979150,0.07671528,98198.0,98176.0,0.0476]
[1732345979365,0.07671528,98198.0,98177.0,0.05093392]
[1732345979582,0.07671528,98198.0,98178.0,0.0476]
[1732345980033,0.07671528,98198.0,98179.0,0.05047772]
[1732345982019,0.07671528,98198.0,98180.0,0.0474]
[1732345984473,0.07843588,98198.0,98180.0,0.0474]
[1732345985395,0.07843588,98198.0,98180.0,0.08786967]
[1732345985608,0.07843588,98198.0,98181.0,0.0474]
[1732345987165,0.07843588,98198.0,98182.0,0.05041081]
[1732345987829,0.04255589,98198.0,98182.0,0.05041081]
[1732345988532,0.00588589,98198.0,98182.0,0.05041081]
[1732345991357,0.0017204,98203.0,98182.0,0.05041081]
[1732345992726,0.52852229,98213.0,98184.0,0.05006016]
[1732345993178,0.52852229,98212.0,98184.0,0.05006016]
[1732345993400,0.023,98211.0,98184.0,0.05006016]
[1732345994515,0.023,98209.0,98184.0,0.05006016]
[1732345995136,0.023,98209.0,98185.0,0.0474]
[1732345995369,0.023,98209.0,98200.0,0.063459]
[1732345995621,0.023,98209.0,98201.0,0.05073854]
[1732345996053,0.55152229,98209.0,98201.0,0.05073854]
[1732345996698,0.51425818,98209.0,98201.0,0.05073854]
[1732345998663,0.51425818,98209.0,98201.0,0.09093915]
[1732345999135,0.51425818,98208.0,98201.0,0.09093915]
[1732346000902,0.50784846,98208.0,98170.0,0.05041497]
[1732346001109,0.50784846,98208.0,98149.0,0.05008586]
[1732346001321,0.50784846,98209.0,98160.0,0.04017594]
[1732346001528,0.50784846,98209.0,98150.0,0.01746778]
[1732346001945,0.50784846,98209.0,98151.0,0.05036853]
[1732346002167,0.50784846,98209.0,98152.0,0.023]
[1732346002380,0.50784846,98209.0,98152.0,0.04046778]
[1732346003941,0.50784846,98209.0,98155.0,0.13]
[1732346004190,0.50784846,98209.0,98166.0,0.0479]
[1732346004398,0.50784846,98209.0,98171.0,0.13]
[1732346004608,0.50784846,98209.0,98174.0,0.0821]
[1732346004858,0.50784846,98209.0,98175.0,0.0479]
[1732346005075,0.50784846,98209.0,98177.0,0.0479]
[1732346005809,0.50784846,98209.0,98180.0,0.0508995]
[1732346006055,0.50784846,98209.0,98182.0,0.0479]
[1732346006290,0.50784846,98209.0,98184.0,0.0479]
[1732346006507,0.50784846,98209.0,98185.0,0.05070925]
[1732346007883,0.47286886,98209.0,98185.0,0.05070925]
[1732346008075,0.46077712,98209.0,98185.0,0.05070925]
[1732346010530,0.42502712,98209.0,98185.0,0.05070925]
[1732346011191,0.0017204,98209.0,98185.0,0.05070925]
[1732346013495,0.0389804,98210.0,98185.0,0.05070925]
[1732346014367,0.0389804,98210.0,98187.0,0.05063321]
[1732346018396,0.0389804,98210.0,98187.0,0.09256334]
[1732346018848,0.0389804,98210.0,98188.0,0.0466]
[1732346019422,0.0246604,98211.0,98192.0,0.05098697]
[1732346019717,0.44796712,98211.0,98192.0,0.05098697]
[1732346019921,0.001721,98210.0,98192.0,0.05098697]
[1732346021477,0.001721,98210.0,98159.0,0.05091586]
[1732346021712,0.001721,98210.0,98161.0,0.05087774]
[1732346021894,0.001721,98210.0,98163.0,0.05042072]
[1732346022155,0.001721,98210.0,98164.0,0.00101852]
[1732346022582,0.01635729,98211.0,98164.0,0.00101852]
[1732346022805,0.01635729,98211.0,98166.0,0.05014273]
[1732346023085,0.01210797,98211.0,98167.0,0.04731852]
[1732346023323,0.01210797,98211.0,98169.0,0.0463]
[1732346023542,0.01210797,98211.0,98171.0,0.0463]
[1732346023772,0.01210797,98211.0,98171.0,0.04731852]
[1732346024686,0.01210797,98211.0,98173.0,0.0463]
[1732346024902,0.01210797,98211.0,98176.0,0.0821]
[1732346025330,0.01210797,98211.0,98178.0,0.0821]
[1732346025555,0.01210797,98211.0,98171.0,0.00101852]
[1732346025556,0.01210797,98211.0,98180.0,0.0821]
[1732346025782,0.43541469,98211.0,98183.0,0.0463]
[1732346026882,0.43041469,98211.0,98183.0,0.0463]
[1732346027774,0.43041469,98211.0,98185.0,0.0463]
[1732346028208,0.39350469,98211.0,98185.0,0.0463]
[1732346028451,0.39350469,98211.0,98187.0,0.0463]
[1732346029112,0.39350469,98212.0,98187.0,0.0463]
[1732346029698,0.39350469,98212.0,98188.0,0.05021152]
[1732346029906,0.39350469,98212.0,98189.0,0.0463]
[1732346030081,0.39350469,98212.0,98190.0,0.05069758]
[1732346030511,0.39350469,98212.0,98191.0,0.0463]
[1732346030711,0.38475048,98212.0,98191.0,0.0463]
[1732346030957,0.38475048,98212.0,98192.0,0.05055882]
[1732346031863,0.001721,98211.0,98192.0,0.05055882]
[1732346032490,0.34290148,98212.0,98193.0,0.0473]
[1732346032714,0.34290148,98212.0,98194.0,0.05057326]
[1732346035117,0.1297206,98213.0,98194.0,0.05057326]
[1732346036427,0.1297206,98213.0,98195.0,0.0471]
[1732346037506,0.1297206,98213.0,98195.0,0.04566914]
[1732346038161,0.1297206,98213.0,98196.0,0.05052251]
[1732346038821,0.0831206,98213.0,98196.0,0.05052251]
[1732346039323,0.08055194,98213.0,98196.0,0.05052251]
[1732346041311,0.08055194,98213.0,98197.0,0.0489]
[1732346043971,0.42517422,98213.0,98197.0,0.0489]
[1732346044390,0.42517422,98213.0,98198.0,0.0503551]
[1732346045282,0.42517422,98213.0,98184.0,0.05001114]
[1732346046612,0.42517422,98213.0,98169.0,0.05005948]
[1732346046834,0.42517422,98213.0,98170.0,0.02596615]
[1732346047110,0.08227274,98213.0,98171.0,0.05016278]
[1732346047329,0.08227274,98213.0,98172.0,0.02494764]
[1732346047770,0.08227274,98213.0,98173.0,0.0508098]
[1732346047986,0.08227274,98213.0,98174.0,0.02494764]
[1732346048437,0.08227274,98213.0,98176.0,0.1238]
[1732346048655,0.08227274,98213.0,98179.0,0.078]
[1732346048877,0.08227274,98213.0,98181.0,0.078]
[1732346049085,0.08227274,98213.0,98183.0,0.078]
[1732346049293,0.08227274,98213.0,98185.0,0.0458]
[1732346049761,0.0494,98212.0,98186.0,0.05039563]
[1732346050740,0.0757,98211.0,98186.0,0.05039563]
[1732346051835,0.0757,98211.0,98186.0,0.09181578]
[1732346055303,0.0757,98211.0,98201.0,0.3073535]
[1732346056167,0.0757,98211.0,98186.0,0.09181578]
[1732346056367,0.0757,98211.0,98186.0,0.09267618]
[1732346058975,0.0476,98210.0,98186.0,0.09267618]
[1732346059182,0.0792,98209.0,98186.0,0.09267618]
[1732346061770,0.0476,98210.0,98186.0,0.09267618]
[1732346061771,0.0476,98210.0,98195.0,0.05058222]
[1732346062200,0.0017208,98213.0,98195.0,0.05058222]
[1732346063294,0.0491,98212.0,98195.0,0.05058222]
[1732346064788,0.078,98211.0,98195.0,0.05058222]
[1732346065880,0.07679825,98211.0,98195.0,0.05058222]
[1732346066086,0.05711593,98211.0,98195.0,0.05058222]
[1732346067562,0.0491,98212.0,98195.0,0.05058222]
[1732346068206,0.0491,98212.0,98209.0,0.40318808]
[1732346068404,0.0491,98212.0,98195.0,0.05058222]
[1732346068405,0.0491,98212.0,98210.0,0.40318808]
[1732346068848,0.0491,98212.0,98202.0,0.16667763]
[1732346069060,0.0017214,98211.0,98202.0,0.16667763]
[1732346069320,0.0017214,98211.0,98195.0,0.05058222]
[1732346071041,0.00126907,98211.0,98195.0,0.05058222]
[1732346074223,0.02243907,98212.0,98195.0,0.05058222]
[1732346074440,0.0017208,98213.0,98195.0,0.05058222]
[1732346077366,0.0508208,98213.0,98197.0,0.0508983]
[1732346077584,0.0069038,98213.0,98197.0,0.0508983]
[1732346078016,0.34290148,98214.0,98198.0,0.0463]
[1732346081134,0.34290148,98214.0,98198.0,0.5463]
[1732346082174,0.0017208,98213.0,98198.0,0.5463]
[1732346082588,0.27235848,98214.0,98199.0,0.05054129]
[1732346083210,0.27235848,98215.0,98199.0,0.05054129]
[1732346084314,0.27235848,98215.0,98200.0,0.0482]
[1732346085685,0.23637848,98215.0,98201.0,0.13005282]
[1732346085895,0.23637848,98215.0,98205.0,0.0482]
[1732346086109,0.23637848,98215.0,98207.0,0.0482]
[1732346086755,0.23637848,98215.0,98208.0,0.0507043]
[1732346088376,0.23637848,98215.0,98209.0,0.0482]
[1732346088538,0.19690378,98215.0,98210.0,0.0507898]
[1732346088761,0.10539557,98215.0,98213.0,0.09862898]
[1732346089005,0.08439557,98215.0,98214.0,0.0482]
[1732346089235,0.18,98239.0,98214.0,0.0482]
[1732346089461,1.40607612,98225.0,98215.0,0.0796]
[1732346089676,1.40607612,98225.0,98216.0,0.0482]
[1732346091024,1.40607612,98225.0,98217.0,0.5]
[1732346091248,1.40607612,98225.0,98218.0,0.0482]
[1732346093109,1.3994401,98225.0,98218.0,0.0482]
[1732346093531,1.3994401,98225.0,98218.0,0.08868859]
[1732346093769,1.3994401,98225.0,98219.0,0.0482]
[1732346094670,1.3781821,98225.0,98219.0,0.0482]
[1732346096058,1.3781821,98225.0,98214.0,0.0482]
[1732346096397,1.37043288,98225.0,98214.0,0.0482]
[1732346103836,1.33905295,98225.0,98216.0,0.0467]
[1732346104535,1.33437295,98225.0,98216.0,0.0467]
[1732346104752,1.3262765,98225.0,98216.0,0.0467]
[1732346105411,1.2923235,98225.0,98218.0,0.0467]
[1732346106688,1.2625135,98225.0,98218.0,0.0467]
[1732346107128,1.25913129,98225.0,98218.0,0.0467]
[1732346108077,1.25913129,98225.0,98218.0,0.04663]
[1732346110618,1.25913129,98225.0,98219.0,0.0759]
[1732346111099,1.25913129,98225.0,98220.0,0.0467]
[1732346111574,1.22817129,98225.0,98220.0,0.0467]
[1732346112518,1.21340129,98225.0,98220.0,0.0529696]
[1732346113701,1.20787129,98225.0,98220.0,0.0529696]
[1732346113923,1.20787129,98225.0,98220.0,0.0467]
[1732346114143,1.20787129,98225.0,98222.0,0.0467]
[1732346114607,1.19962129,98225.0,98222.0,0.0467]
[1732346116521,1.17977129,98225.0,98222.0,0.0467]
[1732346116992,1.17471623,98225.0,98222.0,0.0467]
[1732346117690,1.16391623,98225.0,98222.0,0.0467]
[1732346121325,1.12791623,98225.0,98222.0,0.0467]
[1732346121561,1.11891623,98225.0,98222.0,0.0467]
[1732346123007,1.08449623,98225.0,98222.0,0.0467]
[1732346123237,1.01082623,98225.0,98222.0,0.0467]
[1732346126152,1.01082623,98225.0,98223.0,0.28198619]
[1732346127263,1.01082623,98225.0,98223.0,0.49999919]
[1732346132020,1.01082623,98225.0,98222.0,0.16431647]
[1732346132478,1.01082623,98225.0,98223.0,0.0487]
[1732346133309,1.01082623,98225.0,98224.0,0.14646934]
[1732346134007,0.98582623,98225.0,98224.0,0.14646934]
[1732346134626,0.98582623,98225.0,98224.0,0.1251]
[1732346141083,0.9764124,98225.0,98224.0,0.1251]
[1732346152141,0.9764124,98225.0,98224.0,0.1259603]
[1732346152378,0.96825781,98225.0,98224.0,0.1259603]
[1732346153360,0.95838095,98225.0,98224.0,0.1259603]
[1732346155404,0.95495095,98225.0,98224.0,0.1259603]
[1732346155880,0.95495095,98225.0,98199.0,0.0509095]
[1732346156111,0.95495095,98225.0,98196.0,0.05051016]
[1732346156567,0.88734095,98225.0,98196.0,0.05051016]
[1732346157662,0.88234095,98225.0,98196.0,0.05051016]
[1732346159010,0.88234095,98225.0,98200.0,0.0803]
[1732346159222,0.88234095,98225.0,98202.0,0.0803]
[1732346159446,0.88234095,98225.0,98203.0,0.0485]
[1732346161724,0.88234095,98225.0,98205.0,0.0497]
[1732346162784,0.88234095,98225.0,98206.0,0.0505853]
[1732346163004,0.88234095,98225.0,98208.0,0.0505466]
[1732346163225,0.88234095,98225.0,98211.0,0.0497]
[1732346163676,0.88234095,98225.0,98212.0,0.05085055]
[1732346164798,0.0485,98224.0,98212.0,0.05085055]
[1732346165278,0.03752286,98224.0,98208.0,0.0505466]
[1732346167030,0.03752286,98224.0,98209.0,0.0044011]
[1732346167476,0.03752286,98224.0,98208.0,0.0505466]
[1732346167938,0.03752286,98224.0,98209.0,0.00440232]
[1732346168404,0.0756,98223.0,98208.0,0.0505466]
[1732346168862,0.0756,98223.0,98209.0,0.00441907]
[1732346169297,0.0756,98223.0,98208.0,0.0505466]
[1732346169763,0.0756,98223.0,98209.0,0.00441883]
[1732346169970,0.0756,98223.0,98210.0,0.05072581]
[1732346170104,0.0756,98223.0,98208.0,0.0505466]
[1732346170517,0.0756,98223.0,98210.0,0.05072581]
[1732346171825,0.0756,98223.0,98208.0,0.0505466]
[1732346172395,0.0756,98223.0,98209.0,0.00441865]
[1732346172806,0.0756,98223.0,98208.0,0.0505466]
[1732346173004,0.0756,98223.0,98209.0,0.00441865]
[1732346173212,0.0756,98223.0,98208.0,0.0505466]
[1732346173366,0.0756,98223.0,98209.0,0.00441865]
[1732346173575,0.0756,98223.0,98210.0,0.05072581]
[1732346173983,0.0756,98223.0,98208.0,0.0505466]
[1732346174407,0.0756,98223.0,98206.0,0.0505853]
[1732346176378,0.0756,98223.0,98191.0,0.05024915]
[1732346176581,0.0756,98221.0,98187.0,0.05043834]
[1732346177043,0.0756,98221.0,98188.0,0.00101831]
[1732346177958,0.0756,98221.0,98189.0,0.05026874]
[1732346178180,0.0756,98221.0,98191.0,0.05024915]
[1732346178390,0.0756,98221.0,98188.0,0.05006625]
[1732346178573,0.0756,98221.0,98189.0,0.00101831]
[1732346178825,0.0756,98221.0,98190.0,0.05063643]
[1732346179049,0.0756,98221.0,98191.0,0.00101831]
[1732346179499,0.0756,98221.0,98193.0,0.05055292]
[1732346182861,0.0756,98221.0,98194.0,0.0978969]
[1732346183070,0.05335001,98221.0,98198.0,0.05080495]
[1732346183283,0.05335001,98221.0,98198.0,0.0472]
[1732346183692,0.05335001,98221.0,98199.0,0.05027139]
[1732346188255,0.05335001,98221.0,98199.0,0.09079839]
[1732346188642,0.05335001,98221.0,98199.0,0.13256652]
[1732346189612,0.05335001,98221.0,98191.0,0.05024915]
[1732346189812,0.0469,98220.0,98191.0,0.05024915]
[1732346192176,0.0469,98218.0,98191.0,0.05024915]
[1732346192374,0.0469,98218.0,98192.0,0.01853156]
[1732346192877,0.0469,98218.0,98193.0,0.0472]
[1732346193500,0.0469,98218.0,98194.0,0.05090018]
[1732346193679,0.04347783,98218.0,98194.0,0.05090018]
[1732346195568,0.06888045,98219.0,98194.0,0.05090018]
[1732346198459,0.0471,98218.0,98194.0,0.05090018]
[1732346198665,0.0471,98216.0,98194.0,0.05090018]
[1732346198905,0.0832,98215.0,98194.0,0.05090018]
[1732346199063,0.1303,98215.0,98194.0,0.05090018]
[1732346200965,0.12945963,98215.0,98194.0,0.05090018]
[1732346204434,0.12671258,98215.0,98194.0,0.05090018]
[1732346204647,0.11554657,98215.0,98194.0,0.05090018]
[1732346204881,0.09950547,98215.0,98194.0,0.05090018]
[1732346210313,0.0915604,98215.0,98194.0,0.05090018]
[1732346211286,0.0915604,98215.0,98191.0,0.05032943]
[1732346211492,0.0915604,98215.0,98188.0,0.05080973]
[1732346211875,0.0915604,98215.0,98068.0,0.6268174]
[1732346211876,0.00151444,98215.0,98193.0,0.05016094]
[1732346212079,0.85693818,98225.0,98195.0,0.05076335]
[1732346212279,0.85693818,98225.0,98203.0,0.0753]
[1732346212485,0.85693818,98225.0,98205.0,0.0483]
[1732346212694,0.85693818,98225.0,98206.0,0.00101814]
[1732346212923,0.85693818,98225.0,98207.0,0.05012809]
[1732346213089,0.85693818,98225.0,98209.0,0.05096109]
[1732346214706,0.85693818,98225.0,98209.0,0.05197922]
[1732346214894,0.85693818,98225.0,98209.0,0.05096109]
[1732346215468,0.85693818,98225.0,98207.0,0.05012809]
[1732346215844,0.85693818,98225.0,98206.0,0.05055521]
[1732346218308,0.85693818,98225.0,98207.0,0.00101813]
[1732346218639,0.85284025,98225.0,98207.0,0.00101813]
[1732346218864,0.85284025,98225.0,98208.0,0.05071447]
[1732346219063,0.85284025,98225.0,98209.0,0.00101813]
[1732346220694,0.85284025,98225.0,98210.0,0.05040754]
[1732346221060,0.1277,98224.0,98210.0,0.05040754]
[1732346222611,0.0457,98223.0,98195.0,0.0504732]
[1732346222858,0.00101816,98222.0,98195.0,0.0504732]
[1732346223016,0.0457,98221.0,98195.0,0.0504732]
[1732346223227,0.0457,98221.0,98196.0,0.00101813]
[1732346224518,0.0457,98221.0,98197.0,0.05093784]
[1732346224764,0.0795,98220.0,98197.0,0.05093784]
[1732346225504,0.0457,98219.0,98197.0,0.05093784]
[1732346228388,0.03895003,98217.0,98197.0,0.05093784]
[1732346231589,0.06477923,98218.0,98197.0,0.05093784]
[1732346234530,0.0457,98217.0,98197.0,0.05093784]
[1732346235698,0.0795,98216.0,98197.0,0.05093784]
[1732346236737,0.0795,98216.0,98197.0,0.05179854]
[1732346237788,0.00273956,98224.0,98197.0,0.05179854]
[1732346238894,0.00273956,98224.0,98198.0,0.3068835]
[1732346239506,0.00273956,98224.0,98199.0,0.10066918]
[1732346239721,0.00273956,98224.0,98201.0,0.05099328]
[1732346239922,0.00273956,98224.0,98202.0,0.0498]
[1732346240256,0.00273956,98224.0,98203.0,0.05044472]
[1732346240477,0.00273956,98224.0,98206.0,0.05051355]
[1732346240671,0.00273956,98224.0,98207.0,0.00101813]
[1732346240904,0.0824,98223.0,98207.0,0.00101813]
[1732346242744,0.00101816,98222.0,98207.0,0.00101813]
[1732346243611,0.00101816,98222.0,98208.0,0.05066779]
[1732346243817,0.07643162,98223.0,98208.0,0.05066779]
[1732346244774,0.07643162,98223.0,98209.0,0.00101813]
[1732346245411,0.07137822,98223.0,98209.0,0.00101813]